fUST/lending_fUST_20251027
["ID","MTS","AMOUNT","RATE_DAILY","PERIOD"]
[392471032,1761530394156,-1500.0,0.00019957,14]
[392471033,1761530394179,-1500.0,0.00019957,14]
[392471034,1761530394205,-1500.0,0.00019957,14]
[392471035,1761530394229,-1500.0,0.00019957,14]
[392471036,1761530394255,-1500.0,0.00019957,14]
[392471037,1761530394279,-1500.0,0.00019957,14]
[392471038,1761530394302,-1500.0,0.00019957,14]
[392471039,1761530394326,-1500.0,0.00019957,14]
[392471040,1761530394351,-1500.0,0.00019957,14]
[392471041,1761530394374,-1500.0,0.00019957,14]
[392471042,1761530394398,-1500.0,0.00019957,14]
[392471043,1761530394425,-1500.0,0.00019957,14]
[392471044,1761530394453,-1500.0,0.00019957,14]
[392471045,1761530394478,-1500.0,0.00019957,14]
[392471046,1761530394503,-1500.0,0.00019957,14]
[392471047,1761530394527,-1500.0,0.00019957,14]
[392471048,1761530394550,-1500.0,0.00019957,14]
[392471049,1761530394575,-1500.0,0.00019957,14]
[392471050,1761530394599,-1500.0,0.00019957,14]
[392471051,1761530394626,-1500.0,0.00019957,14]
[392471052,1761530394649,-1500.0,0.00019957,14]
[392471053,1761530394675,-1500.0,0.00019957,14]
[392471054,1761530394828,-1500.0,0.00019957,14]
[392471055,1761530394854,-1500.0,0.00019957,14]
[392471056,1761530394878,-1500.0,0.00019957,14]
[392471057,1761530394903,-1500.0,0.00019957,14]
[392471058,1761530394928,-1500.0,0.00019957,14]
[392471059,1761530394952,-1500.0,0.00019957,14]
[392471060,1761530394976,-1500.0,0.00019957,14]
[392471061,1761530395000,-1500.0,0.00019957,14]
[392471062,1761530395026,-1500.0,0.00019957,14]
[392471063,1761530395051,-1500.0,0.00019957,14]
[392471064,1761530395075,-1500.0,0.00019957,14]
[392471067,1761530508294,670.04855802,0.00020219,59]
[392471068,1761530693804,306.6492811,0.00030136,120]
[392471087,1761530990020,395.611322,0.00030137,120]
[392471114,1761531037167,-500.0,0.00017136,2]
[392471115,1761531037178,-500.0,0.00018038,2]
[392471116,1761531037188,-500.0,0.00018987,2]
[392471117,1761531037198,-150.106,0.00019014,2]
[392471118,1761531037207,-150.079,0.00019014,2]
[392471119,1761531037216,-412.0,0.00019014,2]
[392471120,1761531037225,-403.49456409,0.00019399,2]
[392471121,1761531037234,-917.96717417,0.00019732,2]
[392471122,1761531037244,-653.65274258,0.00019757,2]
[392471123,1761531037253,-882.23873056,0.00019757,2]
[392471124,1761531037263,-300.0,0.00019846,2]
[392471125,1761531037272,-276.63,0.00019847,3]
[392471126,1761531037281,-829.91,0.00019847,3]
[392471127,1761531037290,-4051.18952759,0.00019857,2]
[392471128,1761531037299,-258159.81965384,0.00019857,2]
[392471129,1761531037311,-111840.18034616,0.00019857,2]
[392471130,1761531037320,-235.31423981,0.00019857,2]
[392471131,1761531037330,-168.0,0.00019857,2]
[392471132,1761531037339,-503.89452433,0.00019873,2]
[392471133,1761531037348,-501.21447934,0.00019873,2]
[392471134,1761531037358,-500.0,0.00019873,2]
[392471135,1761531037367,-500.0,0.00019873,2]
[392471136,1761531037377,-500.0,0.00019873,2]
[392471138,1761531037386,-500.0,0.00019873,2]
[392471140,1761531037397,-150.48778083,0.00019873,2]
[392471141,1761531037406,-500.72830631,0.00019873,2]
[392471142,1761531037416,-500.0,0.00019873,2]
[392471143,1761531037425,-173.09144166,0.00019896,2]
[392471144,1761531037435,-222.32160724,0.00019896,2]
[392471145,1761531037445,-463.737211,0.000199,2]
[392471146,1761531037454,-229.726614,0.000199,2]
[392471147,1761531037463,-293.98536016,0.00019945,2]
[392471148,1761531037473,-250.0,0.00019945,2]
[392471149,1761531037484,-265.82882484,0.00019945,2]
[392471150,1761531037494,-200.45782572,0.00019956,2]
[392471151,1761531037503,-372.41778132,0.00019957,2]
[392471152,1761531037512,-151.0,0.00019957,7]
[392471153,1761531037521,-153.164189,0.00019957,7]
[392471154,1761531037532,-151.0,0.00019957,7]
[392471155,1761531037541,-151.970106,0.00019957,7]
[392471156,1761531037551,-151.551498,0.00019957,7]
[392471157,1761531037560,-156.276211,0.00019957,7]
[392471158,1761531037570,-151.376887,0.00019957,7]
[392471159,1761531037579,-151.0,0.00019957,7]
[392471160,1761531037589,-151.0,0.00019957,7]
[392471162,1761531037598,-151.0,0.00019957,7]
[392471164,1761531037607,-173.164042,0.00019957,7]
[392471166,1761531037616,-151.0,0.00019957,7]
[392471168,1761531037625,-151.994628,0.00019957,7]
[392471169,1761531037634,-213.466458,0.00019957,7]
[392471171,1761531037643,-213.466458,0.00019957,7]
[392471173,1761531037653,-213.466458,0.00019957,7]
[392471175,1761531037663,-213.466458,0.00019957,7]
[392471177,1761531037672,-213.466458,0.00019957,7]
[392471178,1761531037681,-213.466458,0.00019957,7]
[392471179,1761531037691,-213.466458,0.00019957,7]
[392471180,1761531037700,-213.466458,0.00019957,7]
[392471181,1761531037709,-213.466458,0.00019957,7]
[392471182,1761531037719,-213.466458,0.00019957,7]
[392471183,1761531037728,-213.466458,0.00019957,7]
[392471184,1761531037738,-213.466458,0.00019957,7]
[392471185,1761531037746,-213.466458,0.00019957,7]
[392471186,1761531037756,-213.466458,0.00019957,7]
[392471187,1761531037765,-213.466458,0.00019957,7]
[392471188,1761531037773,-213.466458,0.00019957,7]
[392471189,1761531037785,-213.466458,0.00019957,7]
[392471190,1761531037796,-213.466458,0.00019957,7]
[392471191,1761531037806,-213.466458,0.00019957,7]
[392471192,1761531037815,-213.466463,0.00019957,7]
[392471193,1761531037824,-151.0,0.00019957,7]
[392471194,1761531037835,-151.0,0.00019957,7]
[392471195,1761531037844,-151.0,0.00019957,7]
[392471196,1761531037853,-151.0,0.00019957,7]
[392471197,1761531037866,-151.0,0.00019957,7]
[392471198,1761531037876,-225.593565,0.00019957,7]
[392471199,1761531037886,-151.0,0.00019957,7]
[392471200,1761531037896,-153.356484,0.00019957,7]
[392471201,1761531037905,-151.0,0.00019957,7]
[392471202,1761531037915,-151.689179,0.00019957,7]
[392471203,1761531037924,-151.0,0.00019957,7]
[392471204,1761531037934,-151.0,0.00019957,7]
[392471205,1761531037943,-151.0,0.00019957,7]
[392471206,1761531037952,-151.0,0.00019957,7]
[392471207,1761531037962,-151.0,0.00019957,7]
[392471208,1761531037971,-151.0,0.00019957,7]
[392471209,1761531037980,-151.0,0.00019957,7]
[392471210,1761531037989,-151.0,0.00019957,7]
[392471211,1761531037998,-151.0,0.00019957,7]
[392471212,1761531038008,-153.123489,0.00019957,7]
[392471213,1761531038017,-151.0,0.00019957,7]
[392471214,1761531038026,-151.0,0.00019957,7]
[392471215,1761531038036,-151.0,0.00019957,7]
[392471216,1761531038045,-151.0,0.00019957,7]
[392471217,1761531038054,-151.0,0.00019957,7]
[392471218,1761531038063,-152.787262,0.00019957,7]
[392471219,1761531038072,-151.0,0.00019957,7]
[392471220,1761531038081,-196.714666,0.00019957,7]
[392471221,1761531038091,-193.454089,0.00019957,7]
[392471222,1761531038100,-151.0,0.00019957,7]
[392471223,1761531038109,-152.152116,0.00019957,7]
[392471224,1761531038118,-151.0,0.00019957,7]
[392471225,1761531038127,-151.0,0.00019957,7]
[392471226,1761531038137,-151.0,0.00019957,7]
[392471227,1761531038146,-151.0,0.00019957,7]
[392471228,1761531038155,-151.0,0.00019957,7]
[392471229,1761531038164,-240.413654,0.00019957,7]
[392471230,1761531038174,-151.0,0.00019957,7]
[392471231,1761531038183,-151.0,0.00019957,7]
[392471232,1761531038193,-151.0,0.00019957,7]
[392471233,1761531038202,-151.0,0.00019957,7]
[392471234,1761531038211,-151.0,0.00019957,7]
[392471235,1761531038221,-151.0,0.00019957,7]
[392471236,1761531038230,-151.0,0.00019957,7]
[392471237,1761531038239,-151.0,0.00019957,7]
[392471238,1761531038248,-151.0,0.00019957,7]
[392471239,1761531038257,-151.0,0.00019957,7]
[392471240,1761531038266,-197.820711,0.00019957,7]
[392471241,1761531038276,-151.0,0.00019957,7]
[392471242,1761531038285,-151.0,0.00019957,7]
[392471243,1761531038294,-151.0,0.00019957,7]
[392471244,1761531038304,-234.399008,0.00019957,7]
[392471245,1761531038313,-151.0,0.00019957,7]
[392471246,1761531038322,-153.277355,0.00019957,7]
[392471247,1761531038331,-151.0,0.00019957,7]
[392471248,1761531038341,-152.207516,0.00019957,7]
[392471249,1761531038351,-154.209041,0.00019957,7]
[392471250,1761531038360,-151.0,0.00019957,7]
[392471251,1761531038369,-151.0,0.00019957,7]
[392471252,1761531038380,-151.0,0.00019957,7]
[392471253,1761531038389,-151.0,0.00019957,7]
[392471254,1761531038398,-151.0,0.00019957,7]
[392471255,1761531038407,-151.0,0.00019957,7]
[392471256,1761531038417,-151.0,0.00019957,7]
[392471257,1761531038426,-151.0,0.00019957,7]
[392471258,1761531038435,-151.0,0.00019957,7]
[392471259,1761531038444,-151.0,0.00019957,7]
[392471260,1761531038453,-151.0,0.00019957,7]
[392471261,1761531038463,-247.395795,0.00019957,7]
[392471262,1761531038473,-151.0,0.00019957,7]
[392471263,1761531038482,-124.94794509,0.00019957,7]
[392471264,1761531038561,-222.89827296,0.00019896,2]
[392471265,1761531038570,-26.05205491,0.00019957,7]
[392471266,1761531038580,-162.588228,0.00019957,7]
[392471267,1761531038589,-220.401083,0.00019957,7]
[392471268,1761531038599,-220.401083,0.00019957,7]
[392471269,1761531038754,-220.401083,0.00019957,7]
[392471270,1761531038764,-220.401083,0.00019957,7]
[392471271,1761531038773,-57.96259453,0.00019957,7]
[392471272,1761531038788,-162.43848847,0.00019957,7]
[392471273,1761531038797,-220.401083,0.00019957,7]
[392471274,1761531038806,-220.401083,0.00019957,7]
[392471275,1761531038816,-220.401083,0.00019957,7]
[392471276,1761531038825,-220.401083,0.00019957,7]
[392471277,1761531038834,-220.401083,0.00019957,7]
[392471278,1761531038844,-220.401083,0.00019957,7]
[392471279,1761531038854,-220.401083,0.00019957,7]
[392471280,1761531038866,-220.401083,0.00019957,7]
[392471281,1761531038875,-220.401083,0.00019957,7]
[392471282,1761531038885,-220.401083,0.00019957,7]
[392471283,1761531038895,-220.401083,0.00019957,7]
[392471284,1761531038904,-220.401083,0.00019957,7]
[392471285,1761531038914,-220.401083,0.00019957,7]
[392471286,1761531038923,-220.401083,0.00019957,7]
[392471287,1761531038933,-220.401091,0.00019957,7]
[392471288,1761531038943,-151.0,0.00019957,7]
[392471289,1761531038952,-150.53740156,0.00019957,7]
[392471290,1761531038973,-0.46259844,0.00019957,7]
[392471291,1761531038983,-151.0,0.00019957,7]
[392471292,1761531038992,-222.497629,0.00019957,7]
[392471293,1761531039001,-151.0,0.00019957,7]
[392471294,1761531039010,-151.0,0.00019957,7]
[392471295,1761531039020,-151.0,0.00019957,7]
[392471296,1761531039029,-151.0,0.00019957,7]
[392471297,1761531039038,-151.0,0.00019957,7]
[392471298,1761531039048,-151.0,0.00019957,7]
[392471299,1761531039057,-151.0,0.00019957,7]
[392471300,1761531039066,-151.0,0.00019957,7]
[392471301,1761531039076,-151.0,0.00019957,7]
[392471302,1761531039085,-151.0,0.00019957,7]
[392471303,1761531039094,-259.57853,0.00019957,7]
[392471304,1761531039104,-197.166465,0.00019957,7]
[392471305,1761531039113,-259.57853,0.00019957,7]
[392471306,1761531039122,-259.57853,0.00019957,7]
[392471307,1761531039131,-151.0,0.00019957,7]
[392471308,1761531039140,-259.57853,0.00019957,7]
[392471309,1761531039150,-151.0,0.00019957,7]
[392471310,1761531039160,-259.57853,0.00019957,7]
[392471311,1761531039169,-151.0,0.00019957,7]
[392471312,1761531039180,-151.0,0.00019957,7]
[392471313,1761531039192,-259.57853,0.00019957,7]
[392471314,1761531039203,-151.0,0.00019957,7]
[392471315,1761531039212,-259.57853,0.00019957,7]
[392471316,1761531039222,-151.0,0.00019957,7]
[392471317,1761531039231,-259.57853,0.00019957,7]
[392471318,1761531039240,-151.0,0.00019957,7]
[392471319,1761531039249,-259.57853,0.00019957,7]
[392471320,1761531039259,-151.0,0.00019957,7]
[392471321,1761531039269,-135.66653756,0.00019957,7]
[392471322,1761531039280,-123.91199244,0.00019957,7]
[392471323,1761531039290,-151.0,0.00019957,7]
[392471324,1761531039299,-259.57853,0.00019957,7]
[392471325,1761531039308,-151.0,0.00019957,7]
[392471326,1761531039317,-259.57853,0.00019957,7]
[392471327,1761531039326,-188.903642,0.00019957,7]
[392471328,1761531039335,-17.97649133,0.00019957,7]
[392471329,1761531039346,-241.60203867,0.00019957,7]
[392471330,1761531039356,-259.57853,0.00019957,7]
[392471331,1761531039366,-259.57853,0.00019957,7]
[392471332,1761531039376,-259.57853,0.00019957,7]
[392471333,1761531039386,-259.57853,0.00019957,7]
[392471334,1761531039396,-259.57853,0.00019957,7]
[392471335,1761531039405,-259.57853,0.00019957,7]
[392471336,1761531039415,-259.57852,0.00019957,7]
[392471337,1761531039424,-160.152937,0.00019957,7]
[392471338,1761531039434,-152.013966,0.00019957,7]
[392471339,1761531039444,-151.524672,0.00019957,7]
[392471340,1761531039453,-151.0,0.00019957,7]
[392471341,1761531039462,-151.0,0.00019957,7]
[392471342,1761531039472,-151.0,0.00019957,7]
[392471343,1761531039481,-154.118474,0.00019957,7]
[392471344,1761531039490,-151.0,0.00019957,7]
[392471345,1761531039500,-152.580694,0.00019957,7]
[392471346,1761531039509,-151.0,0.00019957,7]
[392471347,1761531039519,-151.0,0.00019957,7]
[392471348,1761531039528,-151.0,0.00019957,7]
[392471349,1761531039538,-151.0,0.00019957,7]
[392471350,1761531039547,-151.000006,0.00019957,2]
[392471351,1761531039556,-151.0,0.00019957,7]
[392471352,1761531039565,-151.0,0.00019957,7]
[392471353,1761531039574,-151.0,0.00019957,7]
[392471354,1761531039583,-151.0,0.00019957,7]
[392471355,1761531039592,-151.0,0.00019957,7]
[392471356,1761531039601,-255.490979,0.00019957,7]
[392471357,1761531039610,-151.0,0.00019957,7]
[392471358,1761531039619,-155.810509,0.00019957,7]
[392471359,1761531039629,-66.80808993,0.00019957,7]
[392471425,1761531040364,-222.89827296,0.00019896,2]
[392471427,1761531040373,-85.52282707,0.00019957,7]
[392471429,1761531040382,-151.0,0.00019957,7]
[392471430,1761531040391,-151.0,0.00019957,7]
[392471432,1761531040400,-151.0,0.00019957,7]
[392471434,1761531040409,-151.0,0.00019957,7]
[392471436,1761531040418,-151.0,0.00019957,2]
[392471438,1761531040427,-151.0,0.00019957,2]
[392471440,1761531040436,-151.0,0.00019957,7]
[392471442,1761531040445,-151.0,0.00019957,7]
[392471444,1761531040454,-151.0,0.00019957,7]
[392471445,1761531040463,-151.0,0.00019957,7]
[392471447,1761531040472,-151.0,0.00019957,7]
[392471449,1761531040481,-151.0,0.00019957,7]
[392471451,1761531040490,-151.0,0.00019957,7]
[392471453,1761531040499,-154.230397,0.00019957,7]
[392471455,1761531040508,-151.0,0.00019957,7]
[392471457,1761531040518,-151.0,0.00019957,7]
[392471458,1761531040527,-151.0,0.00019957,7]
[392471460,1761531040537,-151.0,0.00019957,7]
[392471462,1761531040546,-151.0,0.00019957,7]
[392471464,1761531040555,-151.0,0.00019957,7]
[392471466,1761531040564,-151.0,0.00019957,7]
[392471468,1761531040573,-166.864572,0.00019957,7]
[392471470,1761531040582,-151.0,0.00019957,7]
[392471472,1761531040591,-151.0,0.00019957,7]
[392471473,1761531040600,-151.0,0.00019957,7]
[392471475,1761531040609,-151.0,0.00019957,7]
[392471477,1761531040618,-151.0,0.00019957,7]
[392471479,1761531040627,-151.0,0.00019957,7]
[392471481,1761531040636,-151.0,0.00019957,7]
[392471483,1761531040645,-151.0,0.00019957,7]
[392471485,1761531040653,-193.41825,0.00019957,7]
[392471487,1761531040664,-151.0,0.00019957,7]
[392471489,1761531040673,-151.0,0.00019957,7]
[392471491,1761531040684,-151.0,0.00019957,7]
[392471492,1761531040693,-151.0,0.00019957,7]
[392471494,1761531040702,-151.0,0.00019957,7]
[392471496,1761531040711,-151.0,0.00019957,7]
[392471498,1761531040720,-177.920072,0.00019957,7]
[392471500,1761531040730,-151.0,0.00019957,7]
[392471502,1761531040739,-151.0,0.00019957,7]
[392471504,1761531040748,-151.0,0.00019957,7]
[392471506,1761531040757,-154.238355,0.00019957,7]
[392471507,1761531040766,-151.0,0.00019957,7]
[392471509,1761531040775,-152.832159,0.00019957,7]
[392471511,1761531040785,-151.0,0.00019957,7]
[392471527,1761531040945,-151.0,0.00019957,7]
[392471529,1761531040955,-151.0,0.00019957,7]
[392471531,1761531040965,-152.505337,0.00019957,7]
[392471533,1761531040974,-151.0,0.00019957,7]
[392471535,1761531040983,-151.0,0.00019957,7]
[392471537,1761531040992,-151.0,0.00019957,7]
[392471539,1761531041001,-250.627162,0.00019957,7]
[392471541,1761531041011,-151.0,0.00019957,7]
[392471543,1761531041021,-151.0,0.00019957,7]
[392471544,1761531041030,-151.0,0.00019957,7]
[392471546,1761531041039,-151.0,0.00019957,7]
[392471548,1761531041048,-151.0,0.00019957,7]
[392471550,1761531041057,-185.210465,0.00019957,7]
[392471552,1761531041066,-151.0,0.00019957,7]
[392471554,1761531041076,-151.0,0.00019957,7]
[392471556,1761531041085,-151.0,0.00019957,7]
[392471558,1761531041094,-152.841362,0.00019957,7]
[392471559,1761531041103,-151.0,0.00019957,7]
[392471561,1761531041112,-187.856663,0.00019957,7]
[392471563,1761531041121,-236.65071363,0.00019957,2]
[392471565,1761531041130,-235.546867,0.00019957,7]
[392471567,1761531041139,-235.546867,0.00019957,7]
[392471569,1761531041148,-235.546867,0.00019957,7]
[392471571,1761531041158,-235.546867,0.00019957,7]
[392471573,1761531041167,-235.546867,0.00019957,7]
[392471575,1761531041176,-235.546867,0.00019957,7]
[392471577,1761531041185,-235.546867,0.00019957,7]
[392471579,1761531041195,-235.546867,0.00019957,7]
[392471580,1761531041204,-235.546867,0.00019957,7]
[392471582,1761531041214,-235.546867,0.00019957,7]
[392471584,1761531041223,-235.546867,0.00019957,7]
[392471586,1761531041231,-18.59580871,0.00019957,7]
[392471673,1761531194345,1490.83710561,0.00030136,120]
[392471674,1761531234574,1834.6425674,0.00018262,8]
[392471675,1761531242794,5000.0,0.00018262,8]
[392471676,1761531277225,200.0,0.0001789,10]
[392471677,1761531277536,200.0,0.0001789,10]
[392471678,1761531277826,200.0,0.0001789,10]
[392471679,1761531278411,200.0,0.0001789,10]
[392471680,1761531278527,200.0,0.0001789,10]
[392471681,1761531278818,200.0,0.0001789,10]
[392471682,1761531279108,200.0,0.0001789,10]
[392471683,1761531279423,200.0,0.0001789,10]
[392471684,1761531279712,200.0,0.0001789,10]
[392471685,1761531279993,200.0,0.0001789,10]
[392471686,1761531280286,200.0,0.0001789,10]
[392471687,1761531280601,200.0,0.0001789,10]
[392471688,1761531280919,200.0,0.0001789,10]
[392471689,1761531281226,200.0,0.0001789,10]
[392471690,1761531281510,200.0,0.0001789,10]
[392471691,1761531281789,200.0,0.0001789,10]
[392471692,1761531282080,200.0,0.0001789,10]
[392471693,1761531282404,200.0,0.0001789,10]
[392471694,1761531282705,200.0,0.0001789,10]
[392471695,1761531283160,200.0,0.0001789,10]
[392471696,1761531283301,200.0,0.0001789,10]
[392471697,1761531283582,200.0,0.0001789,10]
[392471698,1761531284167,200.0,0.0001789,10]
[392471699,1761531284595,200.0,0.0001789,10]
[392471700,1761531284866,200.0,0.0001789,10]
[392471701,1761531285149,200.0,0.0001789,10]
[392471702,1761531285446,200.0,0.0001789,10]
[392471703,1761531285739,200.0,0.0001789,10]
[392471704,1761531286041,200.0,0.0001789,10]
[392471705,1761531286334,200.0,0.0001789,10]
[392471706,1761531286632,200.0,0.0001789,10]
[392471707,1761531286951,200.0,0.0001789,10]
[392471708,1761531287258,200.0,0.0001789,10]
[392471709,1761531287535,210.379617,0.0001789,10]
[392471711,1761531381840,151.0,0.00016593,7]
[392471713,1761531521549,41.48305063,0.00017304,9]
[392471714,1761531521579,958.51694937,0.00017304,9]
[392471715,1761531523761,1000.0,0.00017304,9]
[392471716,1761531525987,274.72,0.00017304,9]
[392471718,1761531589825,1000.0,0.0003,120]
[392471719,1761531653311,5000.0,0.0001825,9]
[392471720,1761531675606,5000.0,0.0001825,9]
[392471721,1761531679483,151.0,0.00015685,7]
[392471722,1761531698038,4509.66945703,0.0001825,9]
[392471726,1761531878330,151.0,0.00017186,7]
[392471757,1761532076136,284.96252723,0.00015099,2]
[392471764,1761532110244,434848.67564798,0.00029,120]
[392471766,1761532114033,152.26836327,0.00025,120]
[392471776,1761532169481,151.82803721,0.00015302,7]
[392471777,1761532180684,8852.71,0.00016019,3]
[392471778,1761532191440,4426.36,0.00016019,3]
[392471779,1761532196894,12434.21101765,0.0001501,2]
[392471780,1761532202160,2213.18,0.00016019,3]
[392471781,1761532208219,500.0,0.000151,2]
[392471783,1761532212943,1106.59,0.00016019,3]
[392471857,1761532232295,-196.0,0.0001511,2]
[392471859,1761532232305,-675.66251705,0.00015199,2]
[392471879,1761532239474,999.0,0.00014355,2]
[392472246,1761532285112,300.0,0.00015046,2]
[392472247,1761532294153,332.143556,0.00014317,2]
[392472248,1761532309038,300.0,0.00015046,2]
[392472249,1761532328922,49156.46,0.0003013,120]
[392472250,1761532332316,196.0,0.00014959,2]
[392472251,1761532355555,196.0,0.00014959,2]
[392472252,1761532378164,196.0,0.00014959,2]
[392472253,1761532378861,195.55335898,0.0001501,2]
[392472254,1761532401387,196.0,0.00014959,2]
[392472255,1761532423809,196.0,0.00014959,2]
[392472256,1761532424117,7056.2015262,0.00014227,2]
[392472257,1761532446738,196.0,0.00014959,2]
[392472258,1761532469979,196.0,0.00014959,2]
[392472259,1761532492290,196.0,0.00014959,2]
[392472260,1761532514796,196.0,0.00014959,2]
[392472261,1761532537242,196.0,0.00014959,2]
[392472262,1761532560261,196.0,0.00014959,2]
[392472263,1761532582852,196.0,0.00014959,2]
[392472273,1761532605312,196.0,0.00014959,2]
[392472274,1761532627856,196.0,0.00014959,2]
[392472276,1761532651049,196.0,0.00014959,2]
[392472277,1761532674717,196.0,0.00014959,2]
[392472278,1761532680715,545.85,0.00015095,2]
[392472279,1761532680985,545.85,0.00015095,2]
[392472281,1761532696767,196.0,0.00014959,2]
[392472283,1761532719760,196.0,0.00014959,2]
[392472284,1761532742399,196.0,0.00014959,2]
[392472285,1761532764902,196.0,0.00014959,2]
[392472286,1761532778570,10512.6,0.00015242,3]
[392472287,1761532788470,196.0,0.00014959,2]
[392472288,1761532789520,5256.3,0.00015242,3]
[392472289,1761532800319,2628.15,0.00016124,3]
[392472290,1761532810935,1314.07,0.00015241,3]
[392472291,1761532810973,196.0,0.00014959,2]
[392472292,1761532818909,168.635705,0.00014314,2]
[392472293,1761532819098,168.635705,0.00014314,16]
[392472294,1761532819500,168.635705,0.00014314,31]
[392472295,1761532819800,168.635705,0.00014314,46]
[392472296,1761532820127,168.635705,0.00014314,61]
[392472297,1761532820333,168.635705,0.00014314,75]
[392472298,1761532820538,168.635705,0.00014314,90]
[392472299,1761532821018,168.635705,0.00014314,105]
[392472300,1761532821141,168.635705,0.00014314,120]
[392472301,1761532821679,657.04,0.00015241,3]
[392472302,1761532832813,328.52,0.00015241,3]
[392472303,1761532843463,164.26,0.00015493,3]
[392472304,1761532854149,492.79,0.0001519,3]
[392472305,1761532860675,1913.18637729,0.00015099,2]
[392472308,1761532885025,612.568443,0.00013699,2]
[392472311,1761532893271,1898.16124472,0.00015059,2]
[392472329,1761532962110,500.0,0.00030136,120]
[392472342,1761533036256,3978.44819869,0.00015099,2]
[392472343,1761533065483,151.0,0.000144,2]
[392472344,1761533065744,151.0,0.000136,2]
[392472345,1761533066137,151.0,0.000127,2]
[392472346,1761533066427,151.0,0.000119,2]
[392472347,1761533066714,151.0,0.00011,2]
[392472348,1761533070748,2732.8865946,0.00014199,2]
[392472357,1761533171052,1674.03808012,0.00015097,2]
[392472364,1761533183248,15480.0,0.00025,120]
[392472464,1761533355432,1000.0,0.00014198,2]
[392472465,1761533376439,3182.75855896,0.00015097,2]
[392472466,1761533386252,6953.64,0.00015185,3]
[392472467,1761533386738,2035.42208159,0.00014804,2]
[392472468,1761533397099,3476.82,0.00015185,3]
[392472469,1761533407758,1738.41,0.00015185,3]
[392472470,1761533418425,869.21,0.00015185,3]
[392472471,1761533429060,434.6,0.00015185,3]
[392472527,1761533432538,-196.0,0.0001511,2]
[392472529,1761533432548,-151.0,0.00015188,2]
[392472531,1761533432558,-151.0,0.00015188,2]
[392472534,1761533432566,-151.0,0.00015188,2]
[392472536,1761533432576,-151.0,0.00015188,2]
[392472538,1761533432585,-151.0,0.00015188,2]
[392472541,1761533432594,-49.0,0.00015188,2]
[392472544,1761533432604,-232.91943622,0.00015188,2]
[392472546,1761533432613,-161.81758082,0.00015188,2]
[392472548,1761533432624,-300.0,0.00015194,2]
[392472550,1761533432633,-300.0,0.00015194,2]
[392472552,1761533432642,-300.0,0.00015194,2]
[392472554,1761533432651,-300.0,0.00015194,2]
[392472556,1761533432660,-87.58236642,0.00015194,2]
[392472570,1761533432787,-1112.41763358,0.00015194,2]
[392472572,1761533432796,-300.0,0.00015194,2]
[392472574,1761533432805,-536.25096709,0.00015194,2]
[392472576,1761533432814,-500.0,0.00015194,2]
[392472578,1761533432823,-540.54715072,0.00015194,2]
[392472580,1761533432833,-1200.0,0.00015195,2]